[Event "61st Mongolian-ch Open 2023"]
[Site "Khovd"]
[Date "2023.05.22"]
[Round "3.1"]
[White "Bulgankhan Ganzorig"]
[Black "Munkhzul, Turmunkh"]
[Result "0-1"]
[ECO "E05"]
[WhiteElo "2017"]
[BlackElo "2318"]
[Annotator "TA"]
[PlyCount "126"]
[EventDate "2023.05.22"]
[EventType "tourn"]
[EventCountry "MGL"]
[SourceTitle "playchess.com"]
[Source "ChessBase"]
[SourceQuality "1"]
[TimeControl "40/5400+30:1800+30"]

{[%evp 18,126,18,10,23,17,14,19,19,9,29,4,15,19,14,16,20,12,37,6,25,20,28,0,8,14,0,0,15,0,0,0,0,-52,-21,-63,-62,-55,-60,-54,-53,-56,-52,-88,-101,-150,-153,-152,-140,-183,-186,-264,-104,-100,-93,-83,-45,-182,-200,-480,-231,-232,-193,-260,-248,-333,-141,-173,-143,-160,-113,-231,-18,-16,-16,-45,-9,-49,-42,-44,-43,-45,-26,-45,-15,-72,-8,-11,-18,-141,-136,-128,-132,-565,-548,-525,-517,-554,-485,-1471,-1370,-1601,-2037,-1933,-1718,-29969,-29973,-29985,-29986,-29985,-6095]} 1. d4 {[%emt 0:00:08]} Nf6 {[%emt 0:00:52]} 2. c4 {[%emt 0:00:06]} e6 {[%emt 0:01:14]} 3. Nf3 {[%emt 0:00:05]} d5 {[%emt 0:01:24]} 4. g3 {[%emt 0:00:16]} Be7 {[%emt 0:01:40]} 5. Bg2 {[%emt 0:00:19]} O-O {[%emt 0:01:24]} 6. O-O {[%emt 0:00:05]} dxc4 {[%emt 0:01:24]} 7. Qc2 {[%emt 0:00:42]} a6 {[%emt 0:01:53]} 8. a4 {[%emt 0:00:05]} Bd7 {[%emt 0:01:20]} 9. Qxc4 {[%emt 0:00:17]} Bc6 {[%emt 0:01:40]} 10. Bg5 {[%emt 0:00:15]} Nbd7 {[%emt 0:01:43] E05: Open Catalan: 5 Nf3 Be7.} 11. Rd1 {[%emt 0:07:54]} h6 {[%emt 0:01:58]} 12. Bxf6 {[%emt 0:00:46]} Nxf6 {[%emt 0:00:33] The position is equal.} 13. Nbd2 {[%emt 0:04:53]} a5 {[%emt 0:05:52]} 14. Rac1 {[%emt 0:04:34]} Bb4 {[%emt 0:05:19]} 15. Ne5 {[%emt 0:04:22]} Bxg2 {[%emt 0:02:09]} 16. Kxg2 {[%emt 0:00:19]} c6 {[%emt 0:02:37]} 17. Qd3 {[%emt 0:05:41]} Qe7 {[%emt 0:09:11] [#]} 18. Ne4 $146 {[%emt 0:04:34]} ({Predecessor:} 18. Ndc4 Rad8 19. Qf3 Nd5 20. Nd3 Nf6 21. e3 Rfe8 22. h4 Nd7 23. Rc2 Ra8 24. Rcc1 {0-1 Cheparinov,I (2686)-Nihal,S (2620) Capechecs Online Trophy f rapid 2020 (2.1)}) 18... Nd5 {[%emt 0:04:38]} 19. Nc5 {[%emt 0:05:17]} Rfd8 {[%emt 0:08:54]} 20. Qf3 {[%emt 0:06:41]} Nf6 {[%emt 0:04:31]} 21. Nb3 {[%emt 0:02:29]} Nd7 {[%emt 0:02:36]} 22. Nd3 {[%emt 0:01:37]} e5 {[%emt 0:03:56]} 23. e4 {[%emt 0:03:09]} (23. Nxb4 {keeps more tension.} Qxb4 24. d5 Nb6 25. dxc6 bxc6 26. Rxd8+ Rxd8 27. Rxc6 Nxa4 28. Rc7) 23... exd4 {[%emt 0:04:06]} 24. Nxd4 {[%emt 0:00:15] Excellent horsemanship.} (24. Nxb4 {simplifies} axb4 25. Nxd4 g6 26. Qe3) 24... Nf6 {[%emt 0:02:49][%mdl 64] Discovered Attack} 25. Nf5 {[%emt 0:06:26]} (25. Nxb4 $11 axb4 26. Nf5) 25... Qxe4 $15 {[%emt 0:01:01]} 26. Qxe4 {[%emt 0:05:18]} (26. Nxb4 {seems wilder.} Rxd1 27. Rxd1 axb4 28. b3) 26... Nxe4 {[%emt 0:00:07]} 27. Nxb4 $1 {[%emt 0:00:08]} Rxd1 {[%emt 0:03:12]} (27... axb4 28. Rxd8+ Rxd8 29. Rc4 $11) 28. Rxd1 {[%emt 0:00:38] Threatens to win with Nc2.} axb4 {[%emt 0:00:21][%mdl 4160] Endgame Discovered Attack. KRN-KRN} 29. Rd4 {[%emt 0:00:48][%csl LRb4,LRe4]} Nc5 {[%emt 0:01:48]} 30. Rg4 {[%emt 0:00:41]} g6 {[%emt 0:02:05]} ({Much weaker is} 30... Rxa4 $6 31. Rxg7+ Kf8 32. Rh7 $15) 31. Nxh6+ {[%emt 0:03:07]} (31. b3 $142) 31... Kg7 $17 {[%emt 0:00:18]} 32. Nf5+ {[%emt 0:00:23]} Kf6 {[%emt 0:01:02]} 33. Nd6 {[%emt 0:01:08]} Rxa4 {[%emt 0:08:03]} ({Inferior is} 33... Nxa4 34. Rxb4 b5 35. Re4 $11) 34. Rf4+ {[%emt 0:02:11]} (34. h4 {was necessary.}) 34... Ke7 $2 {[%emt 0:01:03]} (34... Ke6 $19 {and Black stays clearly on top.} 35. Ne4 Nd3 36. Ng5+ Kd5 37. Rxf7 Nxb2 38. Rxb7 c5) 35. Nc8+ {[%emt 0:04:07]} Ke6 {[%emt 0:02:10]} 36. Nb6 {[%emt 0:03:20]} Ra5 {[%emt 0:04:23]} 37. Rd4 {[%emt 0:03:42] Wards off Nd3} (37. Rxb4 $15 Ra2 38. h4) 37... b3 $1 $19 {[%emt 0:01:02]} 38. Nc8 $2 {[%emt 0:02:17]} (38. h4 {is a better defense.}) 38... f5 {[%emt 0:01:58]} (38... Ra2 $142 39. Rd6+ Ke5) 39. Rd6+ {[%emt 0:01:41]} Kf7 {[%emt 0:00:25] Strongly threatening ...Ra2.} 40. Nb6 {[%emt 0:00:00] [#]} (40. Rd2 $142) 40... Ra1 $1 {[%emt 0:00:00] aiming for ...Rc1.} 41. Nc4 {[%emt 0:02:52]} Re1 {[%emt 0:05:52]} (41... Rc1 $19 {is more deadly.} 42. Ne5+ Ke7) 42. h4 {[%emt 0:02:28]} Re4 {[%emt 0:04:03]} 43. Nd2 {[%emt 0:06:27]} Re5 {[%emt 0:02:22]} (43... Ra4 $142 44. Kf3 Ra2) 44. Rd8 {[%emt 0:05:50]} (44. Kf1 $17) 44... Rd5 $2 {[%emt 0:02:00]} (44... Re1 $19 {And now ...Rc1 would win.} 45. Kf3 Rc1) 45. Rxd5 $11 {[%emt 0:00:08]} cxd5 {[%emt 0:00:04] KN-KN} 46. Nf3 {[%emt 0:06:04]} Kf6 {[%emt 0:04:14]} 47. Kf1 {[%emt 0:01:25]} Nd3 {[%emt 0:01:14]} 48. Nd4 {[%emt 0:00:34]} Nxb2 {[%emt 0:00:14] ...Ke5 would be deadly.} 49. Nxb3 {[%emt 0:00:03]} Ke5 {[%emt 0:00:42]} 50. Ke2 {[%emt 0:01:08]} b6 {[%emt 0:03:19]} 51. Ke3 {[%emt 0:02:27]} (51. f3 $11) 51... Nd1+ {[%emt 0:02:11]} (51... Nc4+ $17 52. Kd3 Nb2+ 53. Kd2 Nc4+ 54. Kd3 b5) 52. Ke2 {[%emt 0:00:11]} Nc3+ {[%emt 0:00:50]} 53. Kd3 {[%emt 0:01:02]} (53. Ke3 $1 $11) 53... Ne4 $17 {[%emt 0:00:38] White must now prevent ...Nc5+.} 54. Ke3 {[%emt 0:00:09]} Nf6 {[%emt 0:02:50]} 55. Nc1 $2 {[%emt 0:05:38][%mdl 8192]} (55. Kd3 $17) 55... Ng4+ $19 {[%emt 0:00:47]} 56. Ke2 {[%emt 0:01:14] [#]} Kd4 $1 {[%emt 0:01:38]} 57. Nd3 {[%emt 0:00:29]} Ne5 {[%emt 0:00:37]} 58. Nf4 {[%emt 0:00:18]} (58. Nb4 $142 Ke4 59. f4) 58... b5 {[%emt 0:01:25][%cal Bb6b5,Bb5b4,Bb4b3][%mdl 32] Hoping for ...b4.} 59. Kd2 {[%emt 0:02:02]} b4 {[%emt 0:01:03]} 60. h5 {[%emt 0:01:06]} gxh5 {[%emt 0:00:54]} 61. Nxh5 {[%emt 0:00:45]} b3 {[%emt 0:01:04] Black mates.} 62. Ng7 {[%emt 0:01:11]} Nc4+ {[%emt 0:00:20]} 63. Kd1 {[%emt 0:01:56]} Ke5 {[%emt 0:10:58] Weighted Error Value: White=0.59/Black=0.25 (precise)} (63... Kc3 $142 64. Ke2 b2 65. Kf3 b1=Q 66. Kf4 Qe4+ 67. Kg5 Qe7+ 68. Kg6 Ne5+ 69. Kxf5 Qxg7 70. f4 Nd7 71. Ke6 Kd4 72. Kd6 Nc5 73. Kc6 Qb7+ 74. Kd6 Qd7#) 0-1

[Event "61st Mongolian-ch Open 2023"]
[Site "Khovd"]
[Date "2023.05.22"]
[Round "3.2"]
[White "Amilal Munkhdalai"]
[Black "Chinguun, Sumiya"]
[Result "1/2-1/2"]
[ECO "B36"]
[WhiteElo "2141"]
[BlackElo "2298"]
[Annotator "TA"]
[PlyCount "66"]
[EventDate "2023.05.22"]
[EventType "tourn"]
[EventCountry "MGL"]
[SourceTitle "playchess.com"]
[Source "ChessBase"]
[SourceQuality "1"]
[TimeControl "40/5400+30:1800+30"]

{[%evp 24,66,51,59,46,25,22,24,28,24,26,14,14,14,14,14,14,12,12,12,12,14,15,6,8,0,0,0,0,0,0,0,0,0,0,0,0,0,0,0,0,0,0,0,14]} 1. e4 {[%emt 0:00:01]} c5 {[%emt 0:00:09]} 2. Nf3 {[%emt 0:00:03]} d6 {[%emt 0:00:08]} 3. d4 {[%emt 0:00:04]} cxd4 {[%emt 0:00:07]} 4. Nxd4 {[%emt 0:00:03]} Nf6 {[%emt 0:00:08]} 5. f3 {[%emt 0:00:03]} Nc6 {[%emt 0:00:11]} 6. c4 {[%emt 0:00:22]} Nxd4 {[%emt 0:00:06]} 7. Qxd4 {[%emt 0:00:05]} g6 {[%emt 0:00:06]} 8. Nc3 {[%emt 0:01:04]} Bg7 {[%emt 0:00:05]} 9. Be3 {[%emt 0:00:22]} O-O {[%emt 0:00:08]} 10. Qd2 {[%emt 0:00:07]} Be6 {[%emt 0:00:30]} 11. Rc1 {[%emt 0:01:20]} Qa5 {[%emt 0:00:35]} 12. b3 {[%emt 0:03:31]} Rfc8 {[%emt 0:01:55]} 13. Be2 {[%emt 0:01:21] 13.Bd3 is the fancy move.} Rab8 {[%emt 0:03:46] B36: Sicilian: Maroczy Bind: Gurgenidze System.} 14. Nd5 {[%emt 0:06:21]} Qxd2+ {[%emt 0:00:18]} 15. Kxd2 {[%emt 0:00:05]} (15. Bxd2 {simplifies} Nxd5 16. exd5 Bd7 17. Kf2) 15... Nxd5 {[%emt 0:00:14] White has an edge.} 16. cxd5 {[%emt 0:08:33]} Bd7 {[%emt 0:00:17]} 17. Bxa7 {[%emt 0:31:36]} Ra8 {[%emt 0:03:36] [#] ...Bh6+ would be deadly. The position is equal.} 18. Rxc8+ {[%emt 0:00:08]} Bxc8 {[%emt 0:00:04]} 19. Rc1 $1 {[%emt 0:00:10][%cal Oa2a4] Black must now prevent a4!} Bd7 {[%emt 0:00:08] Inhibits a4.} 20. Be3 {[%emt 0:07:06] Against Bh6} Rxa2+ {[%emt 0:00:09]} 21. Kd1 {[%emt 0:00:25] [#] Threatens to win with Rc7.} Ra1 {[%emt 0:04:03] [#]} 22. Rxa1 $146 {[%emt 0:00:44]} ({Predecessor:} 22. g4 f5 23. Rxa1 Bxa1 24. exf5 gxf5 25. g5 Kf7 26. h4 e5 27. dxe6+ Bxe6 28. Kc2 Bd5 29. h5 {1-0 Zwirs,N (2443)-Sukandar,I (2408) Amsterdam Batavia Grolsch 12th 2020 (3)}) 22... Bxa1 $11 {[%emt 0:00:07][%mdl 4096] Endgame KBB-KBB} 23. Kc2 {[%emt 0:00:17]} f5 {[%emt 0:00:10]} 24. Bb6 {[%emt 0:08:46]} fxe4 {[%emt 0:05:40]} 25. fxe4 {[%emt 0:00:03]} Kf7 {[%emt 0:00:12]} 26. Kd3 {[%emt 0:01:07]} Be5 {[%emt 0:03:59]} 27. g3 {[%emt 0:01:03]} Kf6 {[%emt 0:01:02]} 28. Ke3 {[%emt 0:00:10]} h5 {[%emt 0:00:40]} 29. Bd4 {[%emt 0:00:11]} Be8 {[%emt 0:00:12]} 30. Bf1 {[%emt 0:00:37]} g5 {[%emt 0:01:14]} 31. Bh3 {[%emt 0:00:16]} g4 {[%emt 0:00:31]} 32. Bf1 {[%emt 0:00:05]} Bd7 {[%emt 0:00:10]} 33. b4 {[%emt 0:00:44]} b5 {[%emt 0:00:26] Weighted Error Value: White=0.04 (flawless) /Black=0.00 (flawless)} 1/2-1/2

[Event "61st Mongolian-ch Open 2023"]
[Site "Khovd"]
[Date "2023.05.22"]
[Round "3.3"]
[White "Gan-Erdene, Sugar"]
[Black "Erdene, Ganzorig"]
[Result "1-0"]
[ECO "E64"]
[WhiteElo "2420"]
[BlackElo "2278"]
[Annotator "TA"]
[PlyCount "47"]
[EventDate "2023.05.22"]
[EventType "tourn"]
[EventCountry "MGL"]
[SourceTitle "playchess.com"]
[Source "ChessBase"]
[SourceQuality "1"]
[TimeControl "40/5400+30:1800+30"]

{[%evp 15,47,56,56,57,75,54,103,74,71,38,73,71,92,72,77,87,79,74,72,54,79,83,93,100,126,95,152,130,156,148,132,148,756,755]} 1. d4 {[%emt 0:00:03]} Nf6 {[%emt 0:00:05]} 2. c4 {[%emt 0:00:06]} g6 {[%emt 0:00:07]} 3. Nf3 {[%emt 0:00:23]} Bg7 {[%emt 0:00:28]} 4. g3 {[%emt 0:00:07]} c5 {[%emt 0:03:32]} 5. d5 {[%emt 0:02:08]} d6 {[%emt 0:00:25]} 6. Nc3 {[%emt 0:00:52]} a6 {[%emt 0:00:44]} 7. a4 {[%emt 0:02:08]} e5 {[%emt 0:08:12]} 8. Bg2 {[%emt 0:04:12]} O-O {[%emt 0:00:21]} 9. O-O {[%emt 0:01:05] E64: King's Indian: Fianchetto: 6...c5 7 d5.} Bg4 {[%emt 0:00:50] [#]} 10. a5 $146 {[%emt 0:06:55]} ({Predecessor:} 10. Ne1 Qc8 11. a5 Bh3 12. Na4 Bxg2 13. Nxg2 Nbd7 14. Bd2 Re8 15. Qc2 e4 16. Rab1 Ne5 {0-1 Ippolito,D (2397)-Epishin,V (2554) Gibraltar Masters 2007 (1)}) 10... Bxf3 {[%emt 0:02:12]} (10... b5 $14) 11. exf3 {[%emt 0:08:08] White is better.} Nbd7 {[%emt 0:03:38]} 12. Qa4 {[%emt 0:04:23]} Re8 {[%emt 0:05:13]} 13. Be3 {[%emt 0:05:32]} Nh5 {[%emt 0:11:13]} 14. Ne4 {[%emt 0:08:50]} Nf8 {[%emt 0:07:12]} 15. Rab1 {[%emt 0:02:16][%cal Ba1b1,Bb1b4,Bb4b7][%mdl 32] White is much more active. The black rooks are badly placed.} f5 {[%emt 0:02:34]} 16. Nc3 {[%emt 0:00:34][%cal Be4c3,Bc3e2,Be2c1][%mdl 32]} Nd7 {[%emt 0:01:41]} 17. Rfc1 {[%emt 0:06:14]} Rc8 {[%emt 0:07:44]} 18. b4 {[%emt 0:10:20]} e4 {[%emt 0:13:41]} 19. fxe4 {[%emt 0:05:20]} cxb4 {[%emt 0:00:16]} 20. Rxb4 {[%emt 0:08:02]} Ne5 {[%emt 0:00:58]} (20... f4 $142 21. Ba7 (21. gxf4 Nc5 $16) (21. Bxf4 Nxf4 22. gxf4 Nc5 $14) (21. Rxb7 fxe3 22. Qxd7 exf2+ 23. Kf1 Qxd7 $11) 21... Rf8) 21. Ne2 {[%emt 0:04:45]} Nd3 {[%emt 0:14:50]} 22. Rxb7 {[%emt 0:00:24] [#] Threatens to win with Rcb1.} Nxc1 {[%emt 0:00:38]} 23. Nxc1 {[%emt 0:00:14]} Nf6 $2 {[%emt 0:01:18][%mdl 8192]} (23... Rb8 $16 24. Rxb8 Qxb8) 24. Bb6 {[%emt 0:00:43] Weighted Error Value: White=0.11 (very precise) /Black=0.21 (precise)} 1-0

[Event "61st Mongolian-ch Open 2023"]
[Site "Khovd"]
[Date "2023.05.22"]
[Round "3.4"]
[White "Enkhnar, Enkhbaatar"]
[Black "Amartuvshin, Ganzorig"]
[Result "0-1"]
[ECO "E00"]
[WhiteElo "2360"]
[BlackElo "2407"]
[Annotator "TA"]
[PlyCount "104"]
[EventDate "2023.05.22"]
[EventType "tourn"]
[EventCountry "MGL"]
[SourceTitle "playchess.com"]
[Source "ChessBase"]
[SourceQuality "1"]
[TimeControl "40/5400+30:1800+30"]

{[%evp 10,104,34,24,22,14,26,7,39,31,48,33,51,33,98,101,83,89,89,100,98,103,90,64,58,10,64,0,0,0,0,0,0,0,0,0,0,0,0,0,0,0,0,0,0,0,0,0,64,79,79,79,102,101,133,133,133,133,133,133,250,248,377,62,62,26,60,14,60,11,81,-261,-246,-207,155,-249,-250,-248,-241,-246,-240,-349,-344,-656,-646,-577,-466,-755,-697,-621,-513,-741,-730,-1078,-1030,-1185,-1376]} 1. c4 {[%emt 0:00:26]} e6 {[%emt 0:00:09]} 2. d4 {[%emt 0:02:29]} Nf6 {[%emt 0:00:08]} 3. g3 {[%emt 0:00:20]} Bb4+ {[%emt 0:04:35]} 4. Bd2 {[%emt 0:01:50]} Qe7 {[%emt 0:05:20]} 5. Bg2 {[%emt 0:00:30]} Nc6 {[%emt 0:01:07]} 6. a3 {[%emt 0:04:37]} Bxd2+ {[%emt 0:00:17] E00: Catalan Bogo-Indian (3 g3 Bb4+).} 7. Qxd2 {[%emt 0:00:03]} O-O {[%emt 0:01:37]} 8. e3 {[%emt 0:01:53]} a5 {[%emt 0:01:20] The position is equal.} 9. Ne2 {[%emt 0:01:10]} d6 {[%emt 0:01:46]} 10. O-O {[%emt 0:00:38]} e5 {[%emt 0:05:31]} 11. Nbc3 {[%emt 0:00:23]} e4 {[%emt 0:25:16]} (11... a4 $14) 12. Nf4 $16 {[%emt 0:01:28]} Bf5 {[%emt 0:02:47] [#]} 13. Qc2 $146 {[%emt 0:02:53]} ({Predecessor:} 13. Ncd5 Nxd5 14. Nxd5 Qd7 15. b4 Ne7 16. Nc3 Qc6 17. Rac1 axb4 18. axb4 Ra3 19. Nxe4 Bxe4 {1-0 Antunes,L (2123)-Piccoli,L (1904) Florianopolis op 3rd 2017 (2)}) 13... Rfe8 {[%emt 0:00:16]} 14. Rfc1 {[%emt 0:01:23]} Nb8 {[%emt 0:02:00][%cal Bc6b8,Bb8d7,Bd7f6][%mdl 32]} 15. Nfd5 {[%emt 0:02:27]} Nxd5 {[%emt 0:00:28]} 16. cxd5 {[%emt 0:01:23]} Nd7 {[%emt 0:10:17]} 17. Nb5 {[%emt 0:05:05]} (17. Qb3 $14) 17... Rec8 {[%emt 0:01:48]} (17... Rac8 $11) 18. Qb3 {[%emt 0:04:17]} ({Better is} 18. Nxc7 $14 Nf6 19. Nxa8 Rxc2 20. Rxc2) 18... a4 {[%emt 0:04:14]} 19. Qb4 {[%emt 0:01:54]} Nf6 {[%emt 0:00:14]} 20. Nc3 {[%emt 0:00:20][%csl LRa4,LRb7]} b6 {[%emt 0:00:14]} 21. Rc2 {[%emt 0:02:44]} Ra5 {[%emt 0:02:20]} 22. Rac1 {[%emt 0:01:16]} Bd7 {[%emt 0:01:13]} 23. Bf1 {[%emt 0:05:06]} h5 {[%emt 0:00:38]} 24. h4 {[%emt 0:01:30]} Kh7 {[%emt 0:03:14]} 25. Qc4 {[%emt 0:02:09]} Kh6 {[%emt 0:04:04]} 26. Bg2 {[%emt 0:01:14]} g6 {[%emt 0:02:09]} 27. Qf1 {[%emt 0:00:40]} Bf5 {[%emt 0:01:01]} 28. Bh3 {[%emt 0:03:50]} Bg4 {[%emt 0:04:04]} (28... Bxh3 $11 29. Qxh3 Re8) 29. Bxg4 $14 {[%emt 0:03:26]} hxg4 {[%emt 0:00:06]} 30. Nb5 $1 {[%emt 0:00:12][%cal Rc2c7][%mdl 64] Discovered Attack} Nxd5 {[%emt 0:11:37]} 31. Rc6 {[%emt 0:00:22][%cal Ob5d6]} Rxb5 {[%emt 0:01:12]} 32. Qxb5 {[%emt 0:00:20]} Qe6 {[%emt 0:00:10]} 33. Qxa4 {[%emt 0:02:49]} g5 {[%emt 0:00:07]} 34. hxg5+ {[%emt 0:01:13]} Kg6 {[%emt 0:02:10]} (34... Kg7 $16 35. Qc4 Kg6) 35. Qb5 $18 {[%emt 0:03:18][%cal Oc6d6] Threatens to win with Rxd6!} Rh8 {[%emt 0:00:41]} (35... Kh7 $142 36. R1c4 Kg7) 36. Qf1 $2 {[%emt 0:04:23]} (36. Rxc7 $1 $18 {Hoping for Rd7.} Nxc7 37. Rxc7) 36... Kxg5 $14 {[%emt 0:00:32]} 37. Qg2 {[%emt 0:00:21]} f5 {[%emt 0:01:06]} 38. Kf1 {[%emt 0:01:05]} (38. Rd1 $14 {was preferrable.}) 38... Rh3 $11 {[%emt 0:01:06]} 39. Ke2 {[%emt 0:01:18]} (39. R1c2 $14 {should be considered.}) 39... Qh6 {[%emt 0:00:55]} (39... Qc8 $1 $11 {keeps the balance.}) 40. Kd2 $2 {[%emt 0:00:00][%mdl 8192]} (40. Qf1 $16 {and life is bright.}) 40... Rh2 $19 {[%emt 0:00:00]} 41. Qf1 {[%emt 0:02:58] Black must now prevent Re1.} Kf6 $2 {[%emt 0:05:52] [#]} (41... Nxe3 $1 $19 42. Kxe3 Kg6+ 43. Ke2 f4 44. gxf4 (44. Rxc7 $2 {is the wrong capture.} f3+ 45. Kd1 Rh1 $19) 44... g3) 42. Qe2 {[%emt 0:01:16] [#]} (42. Re1 $1 $16) 42... Nxe3 $1 {[%emt 0:00:38][%mdl 512]} 43. Kc3 {[%emt 0:01:19] [#]} Nd5+ {[%emt 0:01:00][%mdl 1088] Discovered Attack. Black has strong compensation.} 44. Kb3 {[%emt 0:00:08] Strongly threatening Qc4.} Qh7 {[%emt 0:02:44] ...Qg8 is the strong threat.} 45. Rf1 {[%emt 0:05:18]} (45. a4 {might work better.} Qf7 46. Qe1) 45... Qf7 {[%emt 0:00:20]} 46. Kc2 $2 {[%emt 0:00:26]} (46. a4 Ne3+ {[%mdl 64] Discovered Attack} 47. Ka3 Nxf1 48. Qxf1) 46... Qd7 {[%emt 0:00:19] Black is clearly winning.} 47. Rc4 {[%emt 0:04:07]} b5 {[%emt 0:00:17][%cal Bb6b5,Bb5c4][%mdl 32]} 48. Rb4 {[%emt 0:00:18] White is weak on the light squares} (48. Rc3 $142 Nxc3 49. Kxc3) 48... Nxb4+ {[%emt 0:00:13]} 49. axb4 {[%emt 0:00:04]} Qc6+ {[%emt 0:00:09]} 50. Kb1 {[%emt 0:00:21]} Qc4 {[%emt 0:00:18] Prevents Rc1.} 51. Qxc4 {[%emt 0:00:49]} bxc4 {[%emt 0:00:05]} 52. Kc1 {[%emt 0:00:04] [#]} f4 $1 {[%emt 0:00:12][%mdl 512] Weighted Error Value: White=0.79/Black=0.31} 0-1

[Event "61st Mongolian-ch Open 2023"]
[Site "Khovd"]
[Date "2023.05.22"]
[Round "3.5"]
[White "Munkhgal, Gombosuren"]
[Black "Munguntuul, Batkhuyag"]
[Result "1-0"]
[ECO "E01"]
[WhiteElo "2463"]
[BlackElo "2408"]
[Annotator "TA"]
[PlyCount "96"]
[EventDate "2023.05.22"]
[EventType "tourn"]
[EventCountry "MGL"]
[SourceTitle "playchess.com"]
[Source "ChessBase"]
[SourceQuality "1"]
[TimeControl "40/5400+30:1800+30"]

{[%evp 15,96,-54,0,0,0,-1,25,20,29,12,29,33,27,21,35,26,39,29,46,31,17,23,52,0,0,-19,-23,-19,-4,-99,-19,-138,-128,-128,-131,-147,-87,-119,70,60,87,0,49,0,0,0,0,0,0,0,0,0,165,0,0,0,0,0,0,0,14,14,559,539,566,518,1061,849,1044,991,1090,995,1447,2335,2092,2193,2133,1859,2614,2428,2331,2014,2149]} 1. d4 {[%emt 0:00:06]} d5 {[%emt 0:00:03]} 2. c4 {[%emt 0:00:06]} c6 {[%emt 0:00:09]} 3. Nc3 {[%emt 0:00:05]} Nf6 {[%emt 0:00:21]} 4. Nf3 {[%emt 0:00:06]} e6 {[%emt 0:00:10]} 5. g3 {[%emt 0:00:06]} dxc4 {[%emt 0:00:20]} 6. Bg2 {[%emt 0:00:04]} b5 {[%emt 0:00:31]} 7. O-O {[%emt 0:01:00]} Bb7 {[%emt 0:00:25]} 8. e4 {[%emt 0:00:11]} Nbd7 {[%emt 0:00:17]} ({Much weaker is} 8... b4 9. e5 $11) (8... Be7 $15) 9. e5 $11 {[%emt 0:00:25] E01: Catalan: Early deviations.} Nd5 {[%emt 0:00:13]} 10. Ng5 {[%emt 0:00:09]} h6 {[%emt 0:03:38] [#]} (10... Nxc3 {simplifies} 11. bxc3 Be7 12. Ne4 O-O) 11. Nxe6 {[%emt 0:05:32] White has an edge.} fxe6 {[%emt 0:00:11]} 12. Qh5+ {[%emt 0:00:06]} Ke7 {[%emt 0:00:07]} (12... g6 $5 13. Qxg6+ Ke7 $11) 13. Ne4 $1 {[%emt 0:05:00]} Qe8 {[%emt 0:00:43]} 14. Bg5+ $1 {[%emt 0:00:23]} hxg5 {[%emt 0:00:05]} 15. Qxh8 {[%emt 0:00:06] Strongly threatening Nd6.} Kd8 {[%emt 0:01:51]} 16. Nxg5 {[%emt 0:00:31]} Qe7 {[%emt 0:16:50]} 17. h4 {[%emt 0:00:48] Qg8 is the strong threat.} (17. Qh4 $5 {[%cal Rg5e6]}) 17... Kc7 {[%emt 0:06:49] [#]} 18. a4 $146 {[%emt 0:05:19]} ({Predecessor:} 18. Bh3 Kb6 19. Nxe6 a5 20. Qh7 Ka7 21. Rfe1 b4 22. Qg6 Qe8 23. Nxf8 Nxf8 24. Qxg7 {½-½ Stupak,K (2453)-Karthikeyan,P (2346) Madurai Athens of the East op 2nd 2022 (5)}) 18... Kb6 {[%emt 0:02:04]} 19. Qg8 {[%emt 0:06:51]} (19. Qh5 $14) 19... Re8 {[%emt 0:15:11]} 20. Bxd5 {[%emt 0:10:24]} exd5 {[%emt 0:07:47]} 21. axb5 {[%emt 0:00:13]} cxb5 {[%emt 0:08:22]} 22. f4 {[%emt 0:05:14]} (22. Qh7 $11 {keeps the balance.}) 22... Nb8 {[%emt 0:05:08]} ({Black should play} 22... a5 $17) 23. Rad1 {[%emt 0:10:40]} (23. Qh7 $1 $11 {remains equal.}) 23... Nc6 $1 $17 {[%emt 0:09:42]} 24. Qh7 {[%emt 0:05:48]} Qb4 $1 {[%emt 0:05:03][%cal Oc6d4]} 25. Qg6 {[%emt 0:00:30]} Rc8 {[%emt 0:00:50]} (25... Ra8 $142 26. Rb1 Qd2) 26. Qc2 {[%emt 0:04:21] [#]} c3 $2 {[%emt 0:05:52]} 27. bxc3 $14 {[%emt 0:01:27]} (27. Qxc3 {simplifies} Qxc3 28. bxc3 Ba6 29. Ne6) 27... Qc4 {[%emt 0:03:35]} 28. Qb2 {[%emt 0:01:50]} (28. Rf2 $16) 28... a5 {[%emt 0:01:35]} (28... g6 $1 $11) 29. Ne6 {[%emt 0:00:14]} (29. f5 $1 $14) 29... g6 $1 $11 {[%emt 0:03:28][%cal Bg7g6,Bg6h5,Bh5h4,Bh4g3][%mdl 32]} 30. h5 {[%emt 0:02:49]} gxh5 {[%emt 0:00:16]} 31. Nxf8 {[%emt 0:00:06]} Rxf8 {[%emt 0:00:04]} 32. f5 {[%emt 0:00:06]} Bc8 {[%emt 0:00:55]} 33. e6 $1 {[%emt 0:01:53]} Rg8 $2 {[%emt 0:03:13] [#]} (33... Rf6 $11 {and Black stays safe.}) 34. Kh2 $2 {[%emt 0:04:04]} (34. Rf3 $1 $18) 34... h4 {[%emt 0:00:01]} 35. Rf3 {[%emt 0:02:33]} hxg3+ {[%emt 0:01:17]} 36. Kg2 {[%emt 0:00:01][%cal Bh2g2,Bg2g3,Bg3f4,Bf4e3][%mdl 32]} (36. Rxg3 $2 {is the wrong capture.} Rf8 37. Re1 Ne7 $19) 36... Rf8 {[%emt 0:00:39]} 37. Re1 {[%emt 0:00:45] aiming for f6. Dancing on a razor blade.} Rf6 {[%emt 0:00:23]} 38. Qd2 {[%emt 0:01:05] Black must now prevent e7.} Ne7 $2 {[%emt 0:00:41][%mdl 8192] This move loses the game for Black.} (38... b4 $1 $11) 39. Qg5 $18 {[%emt 0:16:33] White is clearly winning.} Qa2+ {[%emt 0:00:11]} 40. Kxg3 {[%emt 0:00:00]} Rf8 {[%emt 0:00:00]} (40... Nxf5+ $142 41. Rxf5 Rxf5 42. Qxf5 Qd2) 41. Qxe7 {[%emt 0:31:16]} Rg8+ {[%emt 0:01:02]} 42. Kf4 {[%emt 0:00:01]} a4 {[%emt 0:09:45]} 43. Ke3 {[%emt 0:07:40]} Bb7 {[%emt 0:03:00]} 44. Qc5+ {[%emt 0:00:29]} Ka6 {[%emt 0:00:07]} 45. Qd6+ {[%emt 0:00:25]} Ka7 {[%emt 0:00:06]} 46. Rf2 {[%emt 0:00:43]} Qb3 {[%emt 0:02:22]} 47. Qc5+ {[%emt 0:00:09]} Ka6 {[%emt 0:02:21]} 48. Qb4 {[%emt 0:00:12]} Rg3+ {[%emt 0:16:47] Beautiful play by Munkhgal!   Weighted Error Value: White=0.24 (precise) /Black=0.41} 1-0